[Event "Titled Tuesday Blitz February 28 Early 2023"]
[White "Csonka, Balazs"]
[Black "Kislov, Oleg"]
[WhiteFideId "742910"]
[BlackFideId "13503774"]
[WhiteElo "2404"]
[BlackElo "2186"]
[Result "1-0"]
[Round "06"]
[TimeControl "180+2"]
[Date "2023.02.28"]
[WhiteClock "0:00:36"]
[BlackClock "0:00:20"]

1. d4 {[%clk 0:03:00]}  Nf6 {[%clk 0:02:56]} 2. c4 {[%clk 0:02:58]}  c5 {[%clk 0:02:56]} 3. Nf3 {[%clk 0:02:55]}  cxd4 {[%clk 0:02:56]} 4. Nxd4 {[%clk 0:02:56]}  e5 {[%clk 0:02:56]} 5. Nb5 {[%clk 0:02:56]}  d5 {[%clk 0:02:57]} 6. cxd5 {[%clk 0:02:56]}  a6 {[%clk 0:02:53]} 7. N5c3 {[%clk 0:02:56]}  e4 {[%clk 0:02:54]} 8. Bg5 {[%clk 0:02:51]}  Bc5 {[%clk 0:02:52]} 9. e3 {[%clk 0:02:51]}  Bf5 {[%clk 0:02:47]} 10. Nd2 {[%clk 0:02:44]}  Qe7 {[%clk 0:02:36]} 11. Bxf6 {[%clk 0:02:16]}  Qxf6 {[%clk 0:02:22]} 12. Ndxe4 {[%clk 0:02:06]}  Bxe4 {[%clk 0:02:21]} 13. Qa4+ {[%clk 0:02:06]}  Kd8 {[%clk 0:02:12]} 14. Qxe4 {[%clk 0:02:07]}  Re8 {[%clk 0:02:12]} 15. Qc2 {[%clk 0:01:43]}  Nd7 {[%clk 0:02:05]} 16. Be2 {[%clk 0:01:41]}  Rc8 {[%clk 0:02:02]} 17. O-O {[%clk 0:01:37]}  Bd6 {[%clk 0:01:52]} 18. Rac1 {[%clk 0:01:27]}  Qh4 {[%clk 0:01:42]} 19. g3 {[%clk 0:01:25]}  Qh3 {[%clk 0:01:41]} 20. Qa4 {[%clk 0:01:13]}  Rxe3 {[%clk 0:01:31]} 21. Bg4 {[%clk 0:01:05]}  b5 {[%clk 0:00:31]} 22. Bxh3 {[%clk 0:01:00]}  bxa4 {[%clk 0:00:31]} 23. fxe3 {[%clk 0:01:01]}  Rb8 {[%clk 0:00:31]} 24. Bxd7 {[%clk 0:00:51]}  Kxd7 {[%clk 0:00:30]} 25. Rxf7+ {[%clk 0:00:51]}  Ke8 {[%clk 0:00:30]} 26. Rf2 {[%clk 0:00:51]}  Be5 {[%clk 0:00:29]} 27. Kg2 {[%clk 0:00:50]}  Rb7 {[%clk 0:00:27]} 28. Nxa4 {[%clk 0:00:49]}  Rb4 {[%clk 0:00:27]} 29. b3 {[%clk 0:00:48]}  Kd7 {[%clk 0:00:26]} 30. Rc4 {[%clk 0:00:49]}  Rb5 {[%clk 0:00:26]} 31. e4 {[%clk 0:00:46]}  Bf6 {[%clk 0:00:26]} 32. Nc5+ {[%clk 0:00:44]}  Kd6 {[%clk 0:00:25]} 33. Nd3 {[%clk 0:00:45]}  Rb7 {[%clk 0:00:23]} 34. Rc6+ {[%clk 0:00:43]}  Kd7 {[%clk 0:00:23]} 35. e5 {[%clk 0:00:44]}  Be7 {[%clk 0:00:24]} 36. e6+ {[%clk 0:00:42]}  Kd8 {[%clk 0:00:24]} 37. Rf7 {[%clk 0:00:41]}  g5 {[%clk 0:00:20]} 38. d6 {[%clk 0:00:41]}  Ke8 {[%clk 0:00:16]} 39. Rc8+ {[%clk 0:00:37]}  Bd8 {[%clk 0:00:16]} 40. Rxb7 {[%clk 0:00:37]}  h6 {[%clk 0:00:15]} 41. Kf3 {[%clk 0:00:37]}  a5 {[%clk 0:00:15]} 42. Kg4 {[%clk 0:00:37]}  h5+ {[%clk 0:00:15]} 43. Kxh5 {[%clk 0:00:37]}  a4 {[%clk 0:00:16]} 44. bxa4 {[%clk 0:00:37]}  g4 {[%clk 0:00:16]} 45. Kxg4 {[%clk 0:00:36]}  Kf8 {[%clk 0:00:17]} 46. a5 {[%clk 0:00:36]}  Ke8 {[%clk 0:00:16]} 47. a6 {[%clk 0:00:37]}  Kf8 {[%clk 0:00:16]} 48. a7 {[%clk 0:00:37]}  Ke8 {[%clk 0:00:17]} 49. a8=Q {[%clk 0:00:37]}  Kf8 {[%clk 0:00:18]} 50. Rd7 {[%clk 0:00:36]}  Ke8 {[%clk 0:00:19]} 51. a4 {[%clk 0:00:36]}  Kf8 {[%clk 0:00:20]} 52. a5 {[%clk 0:00:36]} 1-0


[Site "https://www.chess.com"]

[Event "Titled Tuesday Blitz February 28 Early 2023"]
[White "Eswaran, Ashritha"]
[Black "Rosen, Eric"]
[WhiteFideId "2080788"]
[BlackFideId "2032562"]
[WhiteElo "2529"]
[BlackElo "2359"]
[Result "1-0"]
[Round "06"]
[TimeControl "180+2"]
[Date "2023.02.28"]
[WhiteClock "0:00:05"]
[BlackClock "0:00:01"]

1. e4 {[%clk 0:03:00]}  c5 {[%clk 0:02:59]} 2. Nf3 {[%clk 0:03:00]}  Nc6 {[%clk 0:02:58]} 3. d4 {[%clk 0:02:58]}  cxd4 {[%clk 0:02:57]} 4. Nxd4 {[%clk 0:02:58]}  g6 {[%clk 0:02:58]} 5. c4 {[%clk 0:02:57]}  Nf6 {[%clk 0:02:57]} 6. Nc3 {[%clk 0:02:57]}  d6 {[%clk 0:02:54]} 7. Be2 {[%clk 0:02:53]}  Nxd4 {[%clk 0:02:53]} 8. Qxd4 {[%clk 0:02:52]}  Bg7 {[%clk 0:02:54]} 9. Be3 {[%clk 0:02:50]}  O-O {[%clk 0:02:50]} 10. Qd2 {[%clk 0:02:50]}  a5 {[%clk 0:02:50]} 11. O-O {[%clk 0:02:45]}  a4 {[%clk 0:02:49]} 12. f4 {[%clk 0:02:39]}  Qa5 {[%clk 0:02:38]} 13. Rad1 {[%clk 0:02:36]}  a3 {[%clk 0:02:19]} 14. b3 {[%clk 0:02:35]}  Ng4 {[%clk 0:02:19]} 15. Nd5 {[%clk 0:02:29]}  Nxe3 {[%clk 0:02:03]} 16. Nxe7+ {[%clk 0:02:21]}  Kh8 {[%clk 0:02:00]} 17. Qxe3 {[%clk 0:02:21]}  Re8 {[%clk 0:01:48]} 18. Nxc8 {[%clk 0:02:09]}  Raxc8 {[%clk 0:01:37]} 19. Rxd6 {[%clk 0:02:03]}  Bf8 {[%clk 0:01:22]} 20. Qd4+ {[%clk 0:01:59]}  Kg8 {[%clk 0:01:22]} 21. Rd5 {[%clk 0:01:47]}  Bc5 {[%clk 0:01:13]} 22. Kh1 {[%clk 0:01:47]}  Bxd4 {[%clk 0:01:03]} 23. Rxa5 {[%clk 0:01:46]}  Rxe4 {[%clk 0:01:04]} 24. Bf3 {[%clk 0:01:26]}  Rxf4 {[%clk 0:01:04]} 25. g3 {[%clk 0:01:24]}  Rf6 {[%clk 0:00:57]} 26. Kg2 {[%clk 0:01:22]}  b6 {[%clk 0:00:29]} 27. Rxa3 {[%clk 0:01:17]}  Kg7 {[%clk 0:00:23]} 28. Ra7 {[%clk 0:01:14]}  Re8 {[%clk 0:00:20]} 29. Rd1 {[%clk 0:01:04]}  Bc5 {[%clk 0:00:17]} 30. Rdd7 {[%clk 0:00:59]}  Re3 {[%clk 0:00:10]} 31. Bd5 {[%clk 0:00:55]}  Re2+ {[%clk 0:00:11]} 32. Kh3 {[%clk 0:00:55]}  Rff2 {[%clk 0:00:11]} 33. Rxf7+ {[%clk 0:00:52]}  Kh6 {[%clk 0:00:12]} 34. Rxf2 {[%clk 0:00:45]}  Rxf2 {[%clk 0:00:12]} 35. Bg8 {[%clk 0:00:41]}  Kg5 {[%clk 0:00:06]} 36. Rxh7 {[%clk 0:00:38]}  Rxa2 {[%clk 0:00:05]} 37. Rd7 {[%clk 0:00:35]}  Bg1 {[%clk 0:00:05]} 38. Rd5+ {[%clk 0:00:34]}  Kf6 {[%clk 0:00:06]} 39. Kg4 {[%clk 0:00:32]}  Ra8 {[%clk 0:00:06]} 40. Rd6+ {[%clk 0:00:30]}  Ke7 {[%clk 0:00:05]} 41. Rxg6 {[%clk 0:00:29]}  Bxh2 {[%clk 0:00:04]} 42. Bd5 {[%clk 0:00:27]}  Ra3 {[%clk 0:00:04]} 43. Rxb6 {[%clk 0:00:26]}  Bg1 {[%clk 0:00:04]} 44. Rb7+ {[%clk 0:00:25]}  Kd6 {[%clk 0:00:04]} 45. Kg5 {[%clk 0:00:21]}  Ra2 {[%clk 0:00:03]} 46. g4 {[%clk 0:00:21]}  Be3+ {[%clk 0:00:04]} 47. Kg6 {[%clk 0:00:21]}  Rf2 {[%clk 0:00:04]} 48. Rf7 {[%clk 0:00:19]}  Rh2 {[%clk 0:00:04]} 49. Rf6+ {[%clk 0:00:19]}  Kd7 {[%clk 0:00:03]} 50. g5 {[%clk 0:00:16]}  Rh3 {[%clk 0:00:04]} 51. Kf7 {[%clk 0:00:16]}  Rg3 {[%clk 0:00:03]} 52. g6 {[%clk 0:00:15]}  Bd4 {[%clk 0:00:03]} 53. Rf5 {[%clk 0:00:13]}  Rg1 {[%clk 0:00:02]} 54. b4 {[%clk 0:00:12]}  Kd6 {[%clk 0:00:02]} 55. b5 {[%clk 0:00:12]}  Kc7 {[%clk 0:00:03]} 56. b6+ {[%clk 0:00:11]}  Kxb6 {[%clk 0:00:03]} 57. Rh5 {[%clk 0:00:08]}  Kc5 {[%clk 0:00:02]} 58. Rh2 {[%clk 0:00:08]}  Rf1+ {[%clk 0:00:02]} 59. Ke8 {[%clk 0:00:07]}  Re1+ {[%clk 0:00:02]} 60. Kf8 {[%clk 0:00:06]}  Rf1+ {[%clk 0:00:02]} 61. Kg8 {[%clk 0:00:07]}  Kd6 {[%clk 0:00:02]} 62. Rg2 {[%clk 0:00:07]}  Ra1 {[%clk 0:00:02]} 63. g7 {[%clk 0:00:07]}  Rh1 {[%clk 0:00:01]} 64. Kf7 {[%clk 0:00:07]}  Rf1+ {[%clk 0:00:01]} 65. Ke8 {[%clk 0:00:08]}  Re1+ {[%clk 0:00:01]} 66. Kd8 {[%clk 0:00:08]}  Rb1 {[%clk 0:00:01]} 67. Rg6+ {[%clk 0:00:05]}  Kc5 {[%clk 0:00:01]} 68. g8=Q {[%clk 0:00:05]}  Kb4 {[%clk 0:00:02]} 69. Qf8+ {[%clk 0:00:04]}  Bc5 {[%clk 0:00:02]} 70. Qf6 {[%clk 0:00:03]}  Ra1 {[%clk 0:00:01]} 71. Kd7 {[%clk 0:00:03]}  Ra7+ {[%clk 0:00:01]} 72. Ke6 {[%clk 0:00:04]}  Ra6+ {[%clk 0:00:01]} 73. Kf5 {[%clk 0:00:05]}  Ra4 {[%clk 0:00:01]} 74. Qd8 {[%clk 0:00:04]}  Kc3 {[%clk 0:00:01]} 75. Qb8 {[%clk 0:00:05]} 1-0


[Site "https://www.chess.com"]

[Event "Titled Tuesday Blitz February 28 Early 2023"]
[White "Toncheva, Nadya"]
[Black "Starozhilov, Leonid"]
[WhiteFideId "2924056"]
[BlackFideId "14106752"]
[WhiteElo "2101"]
[BlackElo "2414"]
[Result "1/2-1/2"]
[Round "06"]
[TimeControl "180+2"]
[Date "2023.02.28"]
[WhiteClock "0:00:09"]
[BlackClock "0:00:04"]

1. e4 {[%clk 0:03:00]}  c5 {[%clk 0:02:59]} 2. Nf3 {[%clk 0:03:00]}  e6 {[%clk 0:02:59]} 3. c3 {[%clk 0:03:00]}  d5 {[%clk 0:02:57]} 4. exd5 {[%clk 0:03:01]}  exd5 {[%clk 0:02:58]} 5. d4 {[%clk 0:03:02]}  Nc6 {[%clk 0:02:59]} 6. Bb5 {[%clk 0:03:02]}  Bd6 {[%clk 0:02:58]} 7. dxc5 {[%clk 0:03:01]}  Bxc5 {[%clk 0:02:59]} 8. O-O {[%clk 0:03:01]}  Ne7 {[%clk 0:03:00]} 9. Nbd2 {[%clk 0:02:56]}  O-O {[%clk 0:02:59]} 10. Nb3 {[%clk 0:02:56]}  Bd6 {[%clk 0:02:59]} 11. Re1 {[%clk 0:02:52]}  Bg4 {[%clk 0:02:57]} 12. h3 {[%clk 0:02:51]}  Bh5 {[%clk 0:02:56]} 13. Be2 {[%clk 0:02:46]}  a6 {[%clk 0:02:48]} 14. Nfd4 {[%clk 0:02:43]}  Bg6 {[%clk 0:02:47]} 15. Bd3 {[%clk 0:02:40]}  Qd7 {[%clk 0:02:42]} 16. Bxg6 {[%clk 0:02:39]}  hxg6 {[%clk 0:02:39]} 17. Qf3 {[%clk 0:02:36]}  Rac8 {[%clk 0:02:16]} 18. Bf4 {[%clk 0:02:33]}  Rfe8 {[%clk 0:02:10]} 19. Rad1 {[%clk 0:02:27]}  Rcd8 {[%clk 0:02:01]} 20. Nc2 {[%clk 0:02:15]}  Qf5 {[%clk 0:01:54]} 21. Bxd6 {[%clk 0:01:57]}  Qxf3 {[%clk 0:01:53]} 22. gxf3 {[%clk 0:01:58]}  Rxd6 {[%clk 0:01:53]} 23. Nc5 {[%clk 0:01:53]}  Rb8 {[%clk 0:01:43]} 24. c4 {[%clk 0:01:31]}  d4 {[%clk 0:01:37]} 25. Kg2 {[%clk 0:01:17]}  Nf5 {[%clk 0:01:36]} 26. Re4 {[%clk 0:01:12]}  a5 {[%clk 0:01:28]} 27. Nb3 {[%clk 0:00:56]}  Rbd8 {[%clk 0:01:27]} 28. Rd3 {[%clk 0:00:46]}  f6 {[%clk 0:01:11]} 29. Nc5 {[%clk 0:00:46]}  Rb8 {[%clk 0:00:49]} 30. f4 {[%clk 0:00:43]}  b6 {[%clk 0:00:48]} 31. Nb3 {[%clk 0:00:31]}  Rbd8 {[%clk 0:00:47]} 32. Kf3 {[%clk 0:00:29]}  a4 {[%clk 0:00:39]} 33. Nc1 {[%clk 0:00:28]}  Kf7 {[%clk 0:00:38]} 34. Ne2 {[%clk 0:00:27]}  Rh8 {[%clk 0:00:32]} 35. Kg2 {[%clk 0:00:27]}  Nh4+ {[%clk 0:00:28]} 36. Kg3 {[%clk 0:00:24]}  f5 {[%clk 0:00:27]} 37. Ree3 {[%clk 0:00:15]}  Rhd8 {[%clk 0:00:21]} 38. Re5 {[%clk 0:00:07]}  g5 {[%clk 0:00:16]} 39. Rd5 {[%clk 0:00:05]}  Rxd5 {[%clk 0:00:13]} 40. cxd5 {[%clk 0:00:06]}  Rxd5 {[%clk 0:00:13]} 41. fxg5 {[%clk 0:00:07]}  Ng6 {[%clk 0:00:14]} 42. Nf4 {[%clk 0:00:07]}  Rc5 {[%clk 0:00:06]} 43. Nxg6 {[%clk 0:00:07]}  Kxg6 {[%clk 0:00:07]} 44. Rd2 {[%clk 0:00:07]}  Kxg5 {[%clk 0:00:06]} 45. Nxd4 {[%clk 0:00:06]}  f4+ {[%clk 0:00:05]} 46. Kf3 {[%clk 0:00:05]}  Ne5+ {[%clk 0:00:06]} 47. Ke4 {[%clk 0:00:05]}  Ra5 {[%clk 0:00:05]} 48. Ne6+ {[%clk 0:00:04]}  Kf6 {[%clk 0:00:06]} 49. Nxf4 {[%clk 0:00:05]}  Nc4 {[%clk 0:00:06]} 50. Nd5+ {[%clk 0:00:04]}  Kf7 {[%clk 0:00:05]} 51. Rc2 {[%clk 0:00:04]}  Nd6+ {[%clk 0:00:05]} 52. Ke5 {[%clk 0:00:05]}  Ne8 {[%clk 0:00:03]} 53. Kd4 {[%clk 0:00:04]}  Nd6 {[%clk 0:00:03]} 54. Nxb6 {[%clk 0:00:04]}  Rb5 {[%clk 0:00:02]} 55. Nd5 {[%clk 0:00:04]}  Nf5+ {[%clk 0:00:02]} 56. Ke5 {[%clk 0:00:04]}  Ne7 {[%clk 0:00:01]} 57. Rc7 {[%clk 0:00:03]}  Rxd5+ {[%clk 0:00:01]} 58. Ke4 {[%clk 0:00:03]}  Rd2 {[%clk 0:00:02]} 59. f4 {[%clk 0:00:03]}  Re2+ {[%clk 0:00:03]} 60. Kf3 {[%clk 0:00:03]}  Rxb2 {[%clk 0:00:03]} 61. a3 {[%clk 0:00:04]}  Rb3+ {[%clk 0:00:04]} 62. Ke4 {[%clk 0:00:04]}  Rxa3 {[%clk 0:00:04]} 63. h4 {[%clk 0:00:05]}  Rb3 {[%clk 0:00:04]} 64. Ra7 {[%clk 0:00:06]}  Rb4+ {[%clk 0:00:04]} 65. Ke5 {[%clk 0:00:05]}  Rb5+ {[%clk 0:00:05]} 66. Kd6 {[%clk 0:00:05]}  Rb6+ {[%clk 0:00:04]} 67. Ke5 {[%clk 0:00:05]}  Re6+ {[%clk 0:00:04]} 68. Kd4 {[%clk 0:00:06]}  Rh6 {[%clk 0:00:03]} 69. Ke5 {[%clk 0:00:05]}  Rxh4 {[%clk 0:00:03]} 70. Kd6 {[%clk 0:00:06]}  Rh6+ {[%clk 0:00:03]} 71. Ke5 {[%clk 0:00:05]}  Re6+ {[%clk 0:00:03]} 72. Kd4 {[%clk 0:00:05]}  Rf6 {[%clk 0:00:04]} 73. Ke4 {[%clk 0:00:05]}  Kf8 {[%clk 0:00:02]} 74. Rxa4 {[%clk 0:00:05]}  Ng6 {[%clk 0:00:03]} 75. Ra8+ {[%clk 0:00:05]}  Kf7 {[%clk 0:00:03]} 76. Ra7+ {[%clk 0:00:06]}  Kg8 {[%clk 0:00:03]} 77. f5 {[%clk 0:00:06]}  Nf8 {[%clk 0:00:03]} 78. Ra5 {[%clk 0:00:06]}  Rf7 {[%clk 0:00:03]} 79. Ke5 {[%clk 0:00:06]}  Nd7+ {[%clk 0:00:04]} 80. Ke6 {[%clk 0:00:06]}  Nf6 {[%clk 0:00:03]} 81. Ra8+ {[%clk 0:00:06]}  Rf8 {[%clk 0:00:04]} 82. Ra1 {[%clk 0:00:07]}  Re8+ {[%clk 0:00:04]} 83. Kd6 {[%clk 0:00:07]}  Kf7 {[%clk 0:00:04]} 84. Rb1 {[%clk 0:00:06]}  Re3 {[%clk 0:00:03]} 85. Rb7+ {[%clk 0:00:06]}  Kg8 {[%clk 0:00:04]} 86. Rb8+ {[%clk 0:00:07]}  Kh7 {[%clk 0:00:04]} 87. Rb7 {[%clk 0:00:07]}  Kh6 {[%clk 0:00:05]} 88. Ra7 {[%clk 0:00:06]}  Ne8+ {[%clk 0:00:05]} 89. Kd7 {[%clk 0:00:06]}  Nf6+ {[%clk 0:00:04]} 90. Kd6 {[%clk 0:00:06]}  Re8 {[%clk 0:00:04]} 91. Rb7 {[%clk 0:00:05]}  Rg8 {[%clk 0:00:02]} 92. Ke6 {[%clk 0:00:05]}  Kg5 {[%clk 0:00:02]} 93. Rb5 {[%clk 0:00:04]}  Kg4 {[%clk 0:00:01]} 94. Kf7 {[%clk 0:00:04]}  Rd8 {[%clk 0:00:01]} 95. Kxg7 {[%clk 0:00:04]}  Nh5+ {[%clk 0:00:01]} 96. Kf7 {[%clk 0:00:04]}  Rd3 {[%clk 0:00:01]} 97. Ke7 {[%clk 0:00:05]}  Rf3 {[%clk 0:00:01]} 98. Ke6 {[%clk 0:00:05]}  Nf4+ {[%clk 0:00:02]} 99. Ke7 {[%clk 0:00:05]}  Nd3 {[%clk 0:00:02]} 100. Ra5 {[%clk 0:00:05]}  Nf4 {[%clk 0:00:01]} 101. f6 {[%clk 0:00:06]}  Ng6+ {[%clk 0:00:01]} 102. Ke6 {[%clk 0:00:06]}  Nf8+ {[%clk 0:00:02]} 103. Ke7 {[%clk 0:00:07]}  Ng6+ {[%clk 0:00:02]} 104. Ke6 {[%clk 0:00:07]}  Re3+ {[%clk 0:00:02]} 105. Kf7 {[%clk 0:00:07]}  Ne5+ {[%clk 0:00:02]} 106. Kg7 {[%clk 0:00:06]}  Nd3 {[%clk 0:00:01]} 107. f7 {[%clk 0:00:07]}  Re7 {[%clk 0:00:01]} 108. Ra4+ {[%clk 0:00:07]}  Kg5 {[%clk 0:00:01]} 109. Ra5+ {[%clk 0:00:07]}  Kg4 {[%clk 0:00:01]} 110. Kf6 {[%clk 0:00:08]}  Rxf7+ {[%clk 0:00:02]} 111. Kxf7 {[%clk 0:00:08]}  Nf4 {[%clk 0:00:02]} 112. Ke7 {[%clk 0:00:08]}  Kf3 {[%clk 0:00:03]} 113. Kf6 {[%clk 0:00:09]}  Ke4 {[%clk 0:00:04]} 114. Ke7 {[%clk 0:00:09]}  Nd5+ {[%clk 0:00:04]} 115. Rxd5 {[%clk 0:00:09]}  Kxd5 {[%clk 0:00:04]} 1/2-1/2


[Site "https://www.chess.com"]

[Event "Titled Tuesday Blitz February 28 Early 2023"]
[White "Degenbaev, Aziz"]
[Black "Orlov, Georgi"]
[WhiteFideId "13802640"]
[BlackFideId "2011271"]
[WhiteElo "2152"]
[BlackElo "2643"]
[Result "1-0"]
[Round "06"]
[TimeControl "180+2"]
[Date "2023.02.28"]
[WhiteClock "0:00:40"]
[BlackClock "0:00:26"]

1. e4 {[%clk 0:03:00]}  d6 {[%clk 0:02:55]} 2. d4 {[%clk 0:03:00]}  Nf6 {[%clk 0:02:55]} 3. Nc3 {[%clk 0:03:00]}  g6 {[%clk 0:02:56]} 4. f3 {[%clk 0:02:59]}  c6 {[%clk 0:02:54]} 5. Be3 {[%clk 0:02:56]}  b5 {[%clk 0:02:54]} 6. Qd2 {[%clk 0:02:55]}  h5 {[%clk 0:02:54]} 7. Bd3 {[%clk 0:02:50]}  Qc7 {[%clk 0:02:50]} 8. Nge2 {[%clk 0:02:49]}  Nbd7 {[%clk 0:02:46]} 9. O-O {[%clk 0:02:44]}  a6 {[%clk 0:02:40]} 10. Rad1 {[%clk 0:02:19]}  Bb7 {[%clk 0:02:35]} 11. Nf4 {[%clk 0:01:54]}  e5 {[%clk 0:02:24]} 12. dxe5 {[%clk 0:01:48]}  dxe5 {[%clk 0:02:23]} 13. Nh3 {[%clk 0:01:48]}  Nc5 {[%clk 0:01:49]} 14. Qf2 {[%clk 0:01:38]}  Ne6 {[%clk 0:01:36]} 15. Ng5 {[%clk 0:01:17]}  Nf4 {[%clk 0:01:22]} 16. Bxf4 {[%clk 0:01:11]}  exf4 {[%clk 0:01:21]} 17. e5 {[%clk 0:01:12]}  Nd7 {[%clk 0:01:21]} 18. e6 {[%clk 0:01:04]}  Ne5 {[%clk 0:00:57]} 19. exf7+ {[%clk 0:00:58]}  Ke7 {[%clk 0:00:50]} 20. Rfe1 {[%clk 0:00:53]}  Kf6 {[%clk 0:00:26]} 21. Nce4+ {[%clk 0:00:40]} 1-0


[Site "https://www.chess.com"]

[Event "Titled Tuesday Blitz February 28 Early 2023"]
[White "Manukyan, Sargis A."]
[Black "Cabezas Solano, David Alejandro"]
[WhiteFideId "13303970"]
[BlackFideId "6507522"]
[WhiteElo "2187"]
[BlackElo "2030"]
[Result "1-0"]
[Round "06"]
[TimeControl "180+2"]
[Date "2023.02.28"]
[WhiteClock "0:00:59"]
[BlackClock "0:00:02"]

1. d4 {[%clk 0:03:00]}  Nf6 {[%clk 0:02:58]} 2. c4 {[%clk 0:03:01]}  e6 {[%clk 0:02:58]} 3. Nc3 {[%clk 0:03:01]}  d5 {[%clk 0:02:59]} 4. Nf3 {[%clk 0:03:01]}  Be7 {[%clk 0:02:59]} 5. Bg5 {[%clk 0:03:01]}  O-O {[%clk 0:02:58]} 6. e3 {[%clk 0:03:01]}  Nbd7 {[%clk 0:02:58]} 7. cxd5 {[%clk 0:03:00]}  exd5 {[%clk 0:02:58]} 8. Bd3 {[%clk 0:03:00]}  c6 {[%clk 0:02:58]} 9. O-O {[%clk 0:03:01]}  Re8 {[%clk 0:02:58]} 10. Qc2 {[%clk 0:03:01]}  Nf8 {[%clk 0:02:58]} 11. Bxf6 {[%clk 0:03:01]}  Bxf6 {[%clk 0:02:57]} 12. b4 {[%clk 0:03:02]}  Bg4 {[%clk 0:02:38]} 13. Nd2 {[%clk 0:03:00]}  Qd6 {[%clk 0:02:33]} 14. Rab1 {[%clk 0:02:58]}  Rac8 {[%clk 0:02:32]} 15. Bf5 {[%clk 0:02:57]}  Bxf5 {[%clk 0:02:30]} 16. Qxf5 {[%clk 0:02:58]}  g6 {[%clk 0:02:29]} 17. Qd3 {[%clk 0:02:58]}  Ne6 {[%clk 0:02:26]} 18. Na4 {[%clk 0:02:46]}  h5 {[%clk 0:02:06]} 19. Nc5 {[%clk 0:02:43]}  Re7 {[%clk 0:02:01]} 20. Nxe6 {[%clk 0:02:42]}  Qxe6 {[%clk 0:01:56]} 21. Rfc1 {[%clk 0:02:35]}  h4 {[%clk 0:01:55]} 22. h3 {[%clk 0:02:33]}  Kh8 {[%clk 0:01:45]} 23. b5 {[%clk 0:02:33]}  g5 {[%clk 0:01:37]} 24. bxc6 {[%clk 0:02:33]}  bxc6 {[%clk 0:01:37]} 25. Qe2 {[%clk 0:02:21]}  Rg8 {[%clk 0:01:30]} 26. Qg4 {[%clk 0:02:17]}  Qd6 {[%clk 0:01:14]} 27. Rc2 {[%clk 0:02:14]}  Rc7 {[%clk 0:01:04]} 28. Rbc1 {[%clk 0:02:14]}  Rb8 {[%clk 0:00:57]} 29. Nb3 {[%clk 0:02:13]}  Kg7 {[%clk 0:00:56]} 30. Na5 {[%clk 0:02:12]}  Rbc8 {[%clk 0:00:51]} 31. Qe2 {[%clk 0:01:55]}  c5 {[%clk 0:00:42]} 32. dxc5 {[%clk 0:01:51]}  Rxc5 {[%clk 0:00:43]} 33. Nb3 {[%clk 0:01:25]}  Rxc2 {[%clk 0:00:32]} 34. Rxc2 {[%clk 0:01:26]}  Rxc2 {[%clk 0:00:33]} 35. Qxc2 {[%clk 0:01:27]}  Qb4 {[%clk 0:00:31]} 36. Qd1 {[%clk 0:01:23]}  Be5 {[%clk 0:00:26]} 37. Nd2 {[%clk 0:01:15]}  Bf6 {[%clk 0:00:15]} 38. Nf3 {[%clk 0:01:15]}  Qc4 {[%clk 0:00:14]} 39. Qd2 {[%clk 0:01:09]}  a6 {[%clk 0:00:09]} 40. e4 {[%clk 0:01:05]}  dxe4 {[%clk 0:00:05]} 41. Nxg5 {[%clk 0:01:06]}  Qd3 {[%clk 0:00:05]} 42. Qxd3 {[%clk 0:01:00]}  exd3 {[%clk 0:00:05]} 43. Ne4 {[%clk 0:01:00]}  Bg5 {[%clk 0:00:03]} 44. Kf1 {[%clk 0:00:58]}  Bf4 {[%clk 0:00:02]} 45. Nc5 {[%clk 0:00:55]}  d2 {[%clk 0:00:01]} 46. Ke2 {[%clk 0:00:55]}  a5 {[%clk 0:00:01]} 47. Nb3 {[%clk 0:00:55]}  a4 {[%clk 0:00:01]} 48. Nxd2 {[%clk 0:00:55]}  Kf6 {[%clk 0:00:01]} 49. Ne4+ {[%clk 0:00:55]}  Ke5 {[%clk 0:00:01]} 50. Kf3 {[%clk 0:00:56]}  Bh6 {[%clk 0:00:01]} 51. Nc5 {[%clk 0:00:56]}  f5 {[%clk 0:00:02]} 52. Nxa4 {[%clk 0:00:56]}  Kd4 {[%clk 0:00:01]} 53. Nb6 {[%clk 0:00:56]}  Kc3 {[%clk 0:00:01]} 54. Nc8 {[%clk 0:00:57]}  Kb2 {[%clk 0:00:01]} 55. Nd6 {[%clk 0:00:58]}  f4 {[%clk 0:00:01]} 56. Nf5 {[%clk 0:00:59]}  Bg5 {[%clk 0:00:01]} 57. Kg4 {[%clk 0:00:59]}  Bf6 {[%clk 0:00:02]} 58. Kxf4 {[%clk 0:00:59]}  Kxa2 {[%clk 0:00:02]} 59. Kg4 {[%clk 0:00:59]} 1-0


[Site "https://www.chess.com"]